Cogmind - Beta 13 @@@ ROGUE MODE // 2024.03.30 @ 18:17:16 Player: _An Result: Core destroyed Performance ------------- Evolutions (0) 0 Regions Visited (2) 400 Robots Destroyed (16) 80 Value Destroyed (444) 444 Prototype IDs (0) 0 Alien Tech Used (0) 0 Bonus (0) 0 TOTAL SCORE: 924 Bonus ------- None Cogmind --------- Core Integrity 0/250 Matter 300/300 Energy 100/100 System Corruption 3% Temperature Cool (0) Movement Core (50) Location -10/Subcaves Parts ------- > --- POWER (1) -------- (None) > --- PROPULSION (2) --- (None) > --- UTILITY (2) ------ (None) > --- WEAPON (2) ------- (None) > --- INVENTORY (5) ---- Light Angular Momentum Engine Subdweller Optics Peak State ------------ > --- POWER ------------ Light Nuclear Core > --- PROPULSION ------- Aluminum Leg Aluminum Leg > --- UTILITY ---------- Medium Storage Unit Sensor Array > --- WEAPON ----------- Particle Gun Light Assault Rifle > --- INVENTORY -------- Hover Unit Flight Unit Flight Unit Flight Unit Huge Storage Unit Medium Battery Signal Interpreter Weapon Shielding EM Pulse Gun Mining Laser [Rating: 11] Favorites ----------- Power Light Nuclear Core Engine Light Ion Engine Power Core Light Nuclear Core Propulsion Aluminum Leg Leg Aluminum Leg Hover Unit Hover Unit Utility Medium Storage Unit Device Sensor Array Storage Medium Storage Unit Processor Signal Interpreter Protection Weapon Shielding Weapon Light Assault Rifle Energy Gun Particle Gun Ballistic Gun Light Assault Rifle Build | -11 -10 -10 ------- Run | Yrd Mat Sub Slots Evolved . | . . . Power . | . . . Propulsion . | . . . Utility . | . . . Weapon . | . . . Parts Attached 24 | 5 14 5 Power 5 | 1 3 1 Engine 2 | 1 . 1 Core 3 | . 3 . Reactor . | . . . Propulsion 6 | 2 3 1 Treads . | . . . Leg 5 | 2 3 . Wheel . | . . . Hover 1 | . . 1 Flight . | . . . Utility 6 | . 5 1 Device 1 | . 1 . Storage 2 | . 2 . Processor 1 | . 1 . Hackware . | . . . Protection 2 | . 1 1 Artifact . | . . . Weapon 7 | 2 3 2 Energy Gun 3 | . 2 1 Energy Cannon . | . . . Ballistic Gun 4 | 2 1 1 Ballistic Cannon . | . . . Launcher . | . . . Special Weapon . | . . . Impact Weapon . | . . . Slashing Weapon . | . . . Piercing Weapon . | . . . Special Melee Weapon . | . . . Unidentified Prototypes . | . . . Parts Lost 12 | . 2 10 Power 2 | . . 2 Propulsion 4 | . 1 3 Utility 1 | . . 1 Weapon 5 | . 1 4 Highest Loss Streak 7 | . 1 7 To Critical Strikes 2 | . . 2 Average Slot Usage (%) 87 | . 88 84 Engine 5 | . 5 8 Core 7 | . 8 4 Leg 26 | . 27 24 Device 2 | . 3 . Storage 13 | . 13 11 Processor 2 | . . 11 Energy Gun 9 | . 8 11 Ballistic Gun 16 | . 19 8 Naked Turns 8 | . . 8 Heaviest Build 21 | 6 21 21 Greatest Support 20 | 20 20 20 Greatest Overweight (x) 2 | . 1 2 Average Overweight (x) . | . . . Largest Inventory Capacity 10 | 5 10 10 Average Capacity 9 | 5 9 9 Most Carried 10 | 2 10 10 Average Carried 5 | . 5 7 Final Capacity 10 | 5 10 5 Final Carried 9 | . 9 2 Class Distribution -------------------- 86% | Mutant 13% | Scavenger-Mutant Dominant Class ---------------- Mutant | -10/Materials Scavenger-Mutant | -10/Subcaves Resources | -11 -10 -10 ----------- Run | Yrd Mat Sub Matter Collected 552 | 258 231 63 Remotely . | . . . Salvage Created 504 | 35 402 67 Parts 31 | 4 24 3 Haulers Intercepted . | . . . Recyclers Shooed . | . . . Parts Field Recycled . | . . . Retrieved Matter . | . . . Parts Self-Destructed 5 | . . 5 Prevented . | . . . Kills | -11 -10 -10 ------- Run | Yrd Mat Sub Combat Hostiles Destroyed 14 | 1 11 2 Guns 14 | 1 11 2 Classes Destroyed 4 | 1 2 1 Watcher 2 | . 2 . Swarmer 4 | . 3 1 Grunt 9 | 1 8 . Subdweller 1 | . . 1 Best Kill Streak 4 | 1 4 1 Combat Bots Only 4 | 1 4 1 Max Kills in Single Turn 2 | 1 2 1 Gunslinging 1 | . 1 . Exploded . | . . . Melee . | . . . Uniques/NPCs Destroyed . | . . . Combat | -11 -10 -10 -------- Run | Yrd Mat Sub Hostile Shots Fired 130 | 2 50 78 Missed 36 | . 11 25 Damage Taken 1355 | 21 467 867 Core 259 | . 47 212 Absorbed by Shields . | . . . Core Remaining (%) 100 | 100 . . Volleys Fired 64 | 2 41 21 Largest 2 | 2 2 2 Hottest 85 | 40 85 85 Shots Fired 121 | 4 82 35 Gun 121 | 4 82 35 Cannon . | . . . Launcher . | . . . Special . | . . . Kinetic 89 | 4 65 20 Thermal 22 | . 17 5 Explosive . | . . . Electromagnetic 10 | . . 10 Robot Hit Streak 8 | 2 8 6 Robot Miss Streak 5 | 2 5 2 Penetration Max . | . . . Secondary Targets 2 | . 1 1 Max Gunslinging Chain 1 | . 1 1 Shots Hit Robots 69 | 2 50 17 Core Hits 31 | 2 25 4 Critical Kills . | . . . Critical Parts Destroyed . | . . . Critical Strikes 1 | . 1 . Burn 1 | . 1 . Melee Attacks . | . . . Impact . | . . . Slashing . | . . . Piercing . | . . . Sneak Attacks . | . . . Combat Hostiles . | . . . Follow-up Attacks . | . . . Damage Inflicted 867 | 24 608 235 Guns 827 | 24 604 199 Cannons . | . . . Explosions . | . . . Melee . | . . . Ramming 40 | . 4 36 Kinetic 502 | 24 352 126 Thermal 282 | . 252 30 Explosive . | . . . Electromagnetic 43 | . . 43 Impact . | . . . Slashing . | . . . Piercing . | . . . Highest Corruption 3 | . . 3 Average Corruption 1 | . . 1 Corruption Purged . | . . . Corruption Blocked . | . . . Overload Shots . | . . . Overflow Damage . | . . . Projectiles . | . . . Explosions . | . . . Melee . | . . . Knockbacks . | . . . Impact . | . . . Kinetic . | . . . Secondary . | . . . Self-Inflicted Damage 36 | . . 36 Shots . | . . . Rammed . | . . . Targets Rammed 1 | . 1 . Kicked 1 | . 1 . Crushed . | . . . Highest Temperature 390 | 6 390 40 Average Temperature 92 | 6 103 14 Received Heat Transfer 339 | 12 219 108 Effects 2 | . 2 . Shutdowns 1 | . 1 . Damage (minor) 1 | . 1 . Siege Activations . | . . . Robots Corrupted . | . . . Combat Hostiles . | . . . Parts Fried . | . . . Impact Corruptions . | . . . Robots Melted . | . . . Combat Hostiles . | . . . Parts Melted . | . . . Heat Transferred 740 | . 666 74 Parts Sabotaged . | . . . Parts Stolen . | . . . Parts Stripped . | . . . Power Chain Reactions . | . . . Alert | -11 -10 -10 ------- Run | Yrd Mat Sub Peak Influence 265 | 20 265 . Initial 13 | . 13 . Average 75 | 4 83 . Maximum Alert Level 1 | . 1 . Low Security (%) 87 | 100 85 . Level 1 12 | . 14 . Level 2 . | . . . Level 3 . | . . . Level 4 . | . . . Level 5 . | . . . High Security . | . . . Max Security . | . . . Squads Dispatched 2 | . 2 . Investigation 2 | . 2 . Extermination . | . . . Reinforcement . | . . . Assault . | . . . Garrison . | . . . Intercept . | . . . Searches Triggered . | . . . Construction Impeded . | . . . Haulers Reinforced . | . . . Active Scanning Responses . | . . . Cargo Convoy Interrupts . | . . . Stealth | -11 -10 -10 --------- Run | Yrd Mat Sub Distress Signals . | . . . Communications Jammed . | . . . Distress Signals . | . . . Times Spotted 51 | 1 14 36 Peak Tracking Total 6 | 1 3 6 Tactical Retreats 4 | . . 4 Traps | -11 -10 -10 ------- Run | Yrd Mat Sub Traps Triggered 5 | . 5 . Indirectly . | . . . Trap Hack Attempts . | . . . Triggered . | . . . Disarmed . | . . . Reprogrammed . | . . . Reused . | . . . Traps Extracted . | . . . Installed . | . . . Triggered . | . . . Machines | -11 -10 -10 ---------- Run | Yrd Mat Sub Machines Disabled . | . . . Max in Single Turn . | . . . Machines Repaired . | . . . Machines Dismantled . | . . . Machines Sabotaged . | . . . Overloaded Fab Kills . | . . . Hacking | -11 -10 -10 --------- Run | Yrd Mat Sub Machines Accessed 7 | . 7 . Terminals 5 | . 5 . Fabricators . | . . . Repair Stations . | . . . Recycling Units 2 | . 2 . Scanalyzers . | . . . Garrison Access . | . . . Total Hacks 16 | . 16 . Successful 4 | . 4 . Failed 12 | . 12 . Catastrophic 2 | . 2 . Database Lockouts . | . . . Manual 18 | . 18 . Terminals 13 | . 13 . Fabricators . | . . . Repair Stations . | . . . Recycling Units 3 | . 3 . Scanalyzers . | . . . Garrison Access . | . . . Terminal Hacks 1 | . 1 . Unreport Threat 1 | . 1 . Fabricator Hacks . | . . . Repair Station Hacks . | . . . Recycling Unit Hacks . | . . . Scanalyzer . | . . . Garrison Access Hacks . | . . . Unauthorized Hacks 3 | . 3 . Terminals 2 | . 2 . Botnet 2 | . 2 . Fabricators . | . . . Repair Stations . | . . . Recycling Units 1 | . 1 . Reject 1 | . 1 . Scanalyzers . | . . . Garrison Access . | . . . Data Cores Recovered . | . . . Used . | . . . Hacking Detections 8 | . 8 . Full Trace Events . | . . . Feedback Events . | . . . Feedback Blocked . | . . . Robot Schematics Acquired . | . . . Robots Built . | . . . Authchips . | . . . Time . | . . . Total Robot Build Rating . | . . . Part Schematics Acquired . | . . . Parts Built . | . . . Authchips . | . . . Time . | . . . Total Part Build Rating . | . . . Parts Repaired . | . . . Time . | . . . Parts Recycled . | . . . Recycled Matter . | . . . Retrieved Matter . | . . . Retrieved Components . | . . . Parts Scanalyzed . | . . . Part Schematics Acquired . | . . . Parts Damaged . | . . . Bothacking | -11 -10 -10 ------------ Run | Yrd Mat Sub Used RIF Installer . | . . . Robots Hacked . | . . . Non-combat . | . . . Combat . | . . . Robot Hacks Applied . | . . . Relay Couplers Released . | . . . Fabnet Peak Effective % . | . . . Robots Rewired . | . . . Allies Hacked . | . . . Hacks Repelled . | . . . Allies | -11 -10 -10 -------- Run | Yrd Mat Sub Total Allies . | . . . Largest Group . | . . . Highest-Rated Group . | . . . Highest-Rated Ally . | . . . Total Orders . | . . . Ally Attacks . | . . . Total Damage . | . . . Kills . | . . . Allies Corrupted . | . . . Allies Melted . | . . . Intel | -11 -10 -10 ------- Run | Yrd Mat Sub Robot Analysis Total . | . . . Derelict Logs Recovered . | . . . Drone Launches . | . . . Drone Recoveries . | . . . Exploration | -11 -10 -10 ------------- Run | Yrd Mat Sub Turns Passed 1177 | 91 811 275 Spaces Moved 722 | 73 509 140 Core 32 | 18 . 14 Treads . | . . . Legs 687 | 55 509 123 Wheels . | . . . Hover 3 | . . 3 Flight . | . . . Fastest Speed 50 | 50 120 50 Average Speed 122 | 102 122 135 Slowest Speed 190 | 120 190 190 Overloaded Moves . | . . . Propulsion Burnouts . | . . . Robots Hopped . | . . . Cave-ins Triggered . | . . . Exploration Rate (%) 27 | 5 68 8 Regions Visited 2 Branch Regions 1 Pre-discovered Areas . | . . . Known Exits Taken 1 | . 1 . Unknown Exits Taken 1 | 1 . . Scrap Searched . | . . . Spaces Dug . | . . . Terrain Destroyed . | . . . Melee . | . . . Projectile . | . . . AOE . | . . . Terrain Rammed 5 | . . 5 Walls Destroyed . | . . . Machines Disabled . | . . . Actions | -11 -10 -10 --------- Run | Yrd Mat Sub Total 902 | 85 622 195 Wait 53 | . 40 13 Move 720 | 72 508 140 Hop . | . . . Pick Up 19 | 4 10 5 Fast Attach 16 | 3 11 2 Attach 6 | 2 1 3 Detach 4 | . 3 1 Swap 2 | . 2 . Drop 13 | 2 5 6 Fire 64 | 2 41 21 Melee . | . . . Ram 4 | . . 4 Kick 1 | . 1 . Crush . | . . . Escape Stasis . | . . . Rewire . | . . . Trap . | . . . Miscellaneous . | . . . Route ------- -11/Scrapyard -10/Materials (discovered 4 exits: [*Mat x2] / [*Min] / *Sub) -10/Subcaves (discovered 1 exit: *Rec) History --------- Turn | Location | Event 2 | -11/Scrapyard | Met Revision 17 63 | -11/Scrapyard | Discovered new exit (range 8) 92 | -11/Scrapyard | Entered Materials 244 | -10/Materials | Discovered new exit (range 6) 305 | -10/Materials | Build established: Mutant 497 | -10/Materials | Discovered new exit (range 10) 634 | -10/Materials | Discovered new exit (range 10) 880 | -10/Materials | Discovered new exit (range 16) 903 | -10/Materials | Identified exit to Subcaves 903 | -10/Materials | Entered Subcaves 939 | -10/Subcaves | Discovered new exit (range 12) 969 | -10/Subcaves | Identified exit to Recycling 1107 | -10/Subcaves | Ambushed by swarm of Subdwellers 1157 | -10/Subcaves | Lost 4 allies 1167 | -10/Subcaves | Core integrity fell below 50% 1175 | -10/Subcaves | Core integrity fell below 20% 1178 | -10/Subcaves | Core destroyed Last Messages --------------- VD-9YS(R) affixes Scrap Shield Fragment to Scrap Shield. Hover Unit destroyed. Sub. Machine Gun destroyed. Acquired 18 matter. Sub. Power Source destroyed. Acquired Lgt. Angular Momentum Engine. VD-9YS(R) misfires. NE-4L5(R) destroyed. Slammed into Twisted Machinery. Destabilizing: System corrupted (+1). Slammed into Twisted Machinery. Destabilizing: Core damaged (-7). Slammed into Twisted Machinery. Destabilizing: Core damaged (-5). Slammed into Twisted Machinery. Destabilizing: System corrupted (+2). Slammed into Twisted Machinery. Destabilizing: Core damaged (-12). [Achievement: First Step to Greatness] Map ----- +----------------------------------------------------+ | ?????????????????????????????????????????????????? | | ?????????????????????????????????????????????????? | | ?????????????????????????????????????????????????? | | ?????????????????????####????????????????????????? | | ????????????????????## #????????????????????????? | | ???????????????????## ####?????????????????????? | | ???????????????????? ##????????????????????? | | ????????????????????? ##?????####??????????? | | ??????????????????????# ##???## ##?????????? | | ????????#?????????????# ##?## #?????????? | | ????????#"??????????### ### ###???????? | | ????????#"?????????## ## ##??????? | | ????????#" ???????## % ###????? | | ?????????# #????### # # ! ##???? | | ?????????# #??##! ### ### #???? | | ?????????# ### %! ###?# ## ##???? | | ?????????# * % ####???# " #????? | | ?????????## =% ####??????## #????? | | ??????????# ==## ##?????# #????? | | ?????????#"# ### ##????# #### ##????? | | ?????????#?## ## #????# #???# #?????? | | ????????????# #????# #???? #?????? | | ????????????# #####?#"% ###????? #?????? | | ????????????### %##*;####% %####????? #?????? | | ??????????????## !%%=%#" "#?????? ?????? | | ??????????????##""" !%[* @" % #?????? ????? | | ????????????? """" =% R""R % #??????? ???? | | ????????????# """"" "%R##" #???????? ??? | | ????????????# """ ### % %% #????????? ##?? | | ????????????# ##"%%"#?# " """#?????????????? | | ???????????? ######[|=####;##>#;###?????????????? | | ??????????? "?????##"%!!##########???????????????? | | ??????????????????#"&!"" ####????????????????????? | | ?????????????????## !!""""""#????????????????????? | | ?????????????????# ""#????????????????????? | | ???????????????# """" #???????????????????? | | ???????????????# """" #??????????????????? | | ???????????????##"""" #?????????????????? | | ????????????????##""" ###### #?????????????????? | | ?????????????????#######??????##?????????????????? | | ?????????????????????????????????????????????????? | | ?????????????????????????????????????????????????? | | ?????????????????????????????????????????????????? | | ?????????????????????????????????????????????????? | | ?????????????????????????????????????????????????? | | ?????????????????????????????????????????????????? | | ?????????????????????????????????????????????????? | | ?????????????????????????????????????????????????? | | ?????????????????????????????????????????????????? | | ?????????????????????????????????????????????????? | +----------------------------------------------------+ Best States ------------- Heat Dissipation 25 Energy Generation 15 Energy Capacity 310 Matter Stores 300 Matter Capacity 300 Sight Range 16 Robot Scan Range 14 Terrain Scan Density 10 Armor Coverage 800 Weapon Shielding 33 Evasion (%) 55 Item Schematics ----------------- None Robot Schematics ------------------ None Fabricated ------------ Nothing Alien Tech Used ----------------- None Achievements -------------- Everything Is Under Control First Step to Greatness Storm Trooper True Hacker Challenges ------------ None Game ------ Seed FrostFissionRecalibrator Manual? 0 Play Time 00:24:07 Cumulative 0.3 hours Start 2024.03.30 @ 17:50:57 End 2024.03.30 @ 18:17:16 Sessions 1 Manual Loads 0 Difficulty Rogue Special Mode None Game No. 1 Rogue 1 Adventurer 0 Explorer 0 Win Type - Total 0 Types 0/0/0/0/0/0/0/0/0 Lore% 0 Gallery% 1 Achievement% 1 Wizard Run 0 Options --------- Layout 1 ASCII 0 Keyboard 1 Movement Numpad Keybinds 0 Fullscreen 1 Font 32/SmallcapsGlow Map View 50x35 Zoom Use 0% Tactical HUD 0 Map Filters NONE Filters NONE Steam 1 RUN: 0b0eff96-c900-4a01-af2b-7889b0d0fd1b